bitfinex-derivatives/quotes_ETHF0:USTF0_20250702
["timestamp","ask_amount","ask_price","bid_price","bid_amount"]
[1751415954812,0.83058,2407.4,2407.3,2.43309043]
[1751415956911,0.83065,2407.2,2407.1,2.43309043]
[1751415959215,0.83068,2407.1,2407.0,0.7158]
[1751415961910,0.83066,2407.2,2407.0,0.7158]
[1751415962110,0.83066,2407.2,2407.1,2.43309043]
[1751415963416,0.83063,2407.3,2407.1,2.43309043]
[1751415963817,0.83063,2407.3,2407.1,3.26377043]
[1751415964118,0.83063,2407.3,2407.1,2.43309043]
[1751415964520,0.83063,2407.3,2407.1,3.26377043]
[1751415964818,0.83063,2407.3,2407.1,2.43309043]
[1751415965319,0.83063,2407.3,2407.1,3.11739043]
[1751415966021,0.83063,2407.3,2407.1,3.94806043]
[1751415966422,0.83063,2407.3,2407.1,3.11739043]
[1751415967024,0.83065,2407.2,2407.0,0.7158]
[1751415967225,0.83065,2407.2,2407.1,2.43309043]
[1751415967528,3.42524,2407.5,2407.0,0.7158]
[1751415967732,0.83068,2407.1,2407.0,0.7158]
[1751415969127,1.3901,2407.2,2406.7,3.12699043]
[1751415969332,0.83079,2406.8,2406.7,3.12699043]
[1751415970032,0.83078,2406.9,2406.7,3.12699043]
[1751415970332,1.3188,2407.0,2406.7,3.12699043]
[1751415970533,1.3188,2407.0,2406.8,0.7267]
[1751415970927,0.83075,2406.9,2406.8,0.7267]
[1751415975436,0.83082,2406.7,2406.6,0.78300662]
[1751415975627,0.83086,2406.6,2406.5,3.12069043]
[1751415976534,0.83085,2406.7,2406.5,3.12069043]
[1751415976831,0.83086,2406.6,2406.5,3.12069043]
[1751415977231,1.4119,2406.8,2406.5,3.12069043]
[1751415977435,0.83084,2406.7,2406.5,3.12069043]
[1751415977842,0.83084,2406.7,2406.5,3.95157043]
[1751415978040,0.83084,2406.7,2406.5,3.87990596]
[1751415978336,0.83086,2406.6,2406.5,3.87990596]
[1751415978533,0.83086,2406.6,2406.5,1.44681553]
[1751415978740,0.83086,2406.6,2406.5,3.87990596]
[1751415978942,0.83093,2406.4,2406.3,8.91788992]
[1751415979146,0.83093,2406.4,2406.3,3.88167871]
[1751415979944,0.83093,2406.4,2406.3,2.43309043]
[1751415980139,0.83096,2406.3,2406.2,8.18868992]
[1751415980738,0.83096,2406.3,2406.1,3.13299043]
[1751415981641,0.831,2406.2,2406.1,3.13299043]
[1751415982042,0.831,2406.2,2406.1,3.91897499]
[1751415984241,0.831,2406.2,2406.1,3.13299043]
[1751415986643,0.831,2406.2,2406.1,0.6999]
[1751415986851,0.83106,2406.0,2405.9,14.15109043]
[1751415987337,0.83106,2406.0,2405.9,2.43309043]
[1751415988241,0.83106,2406.0,2405.9,3.12759043]
[1751415988642,0.83106,2406.0,2405.9,0.6945]
[1751415989141,0.83106,2406.0,2405.8,0.76790189]
[1751415989142,0.83113,2405.8,2405.7,3.11879043]
[1751415990547,0.8312,2405.6,2405.5,3.12759043]
[1751415991548,0.83119,2405.7,2405.5,3.12759043]
[1751415991740,0.7097,2406.0,2405.5,3.95882043]
[1751415991941,0.8311,2405.9,2405.8,2.43309043]
[1751415992546,0.83115,2405.8,2405.6,0.76648485]
[1751415992747,0.83115,2405.8,2405.7,2.43309043]
[1751415993343,0.83117,2405.7,2405.5,2.0725]
[1751415993545,0.83117,2405.7,2405.6,2.43309043]
[1751415994148,0.7097,2406.0,2405.6,2.43309043]
[1751415994149,0.83116,2405.8,2405.6,2.43309043]
[1751415995044,0.83112,2405.9,2405.6,3.26427043]
[1751415995245,0.83112,2405.9,2405.8,2.43309043]
[1751415997147,1.3816,2406.1,2405.6,0.78037907]
[1751415997354,0.83117,2405.8,2405.7,2.43309043]
[1751415999249,0.7126,2406.0,2405.5,3.85479043]
[1751415999454,0.83119,2405.7,2405.5,3.95882043]
[1751415999751,0.83119,2405.7,2405.5,3.12759043]
[1751415999950,0.83119,2405.7,2405.5,3.87774021]
[1751416000454,1.4452,2405.9,2405.5,3.87774021]
[1751416000656,0.83119,2405.7,2405.5,3.87774021]
[1751416000951,0.83119,2405.7,2405.5,4.70897021]
[1751416002857,0.83119,2405.7,2405.5,3.87774021]
[1751416003359,0.83119,2405.7,2405.5,4.70898021]
[1751416003657,0.83119,2405.7,2405.5,3.87774021]
[1751416005849,0.8312,2405.6,2405.5,3.87774021]
[1751416007455,0.83119,2405.7,2405.5,3.87774021]
[1751416008157,0.6833,2406.0,2405.5,6.08986021]
[1751416008357,0.8311,2405.9,2405.8,2.43309043]
[1751416009258,0.6833,2406.0,2405.8,2.43309043]
[1751416009461,0.8311,2405.9,2405.8,2.43309043]
[1751416011257,0.83109,2406.0,2405.8,3.95052043]
[1751416011462,0.83109,2406.0,2405.9,2.43309043]
[1751416011857,5.20331043,2406.6,2405.9,2.43309043]
[1751416011858,0.693,2406.6,2405.9,2.43309043]
[1751416012157,0.8309,2406.5,2406.4,2.43309043]
[1751416016164,0.8309,2406.5,2406.3,0.6647]
[1751416016361,2.0185,2406.8,2406.3,0.6647]
[1751416016667,0.83093,2406.4,2406.3,0.6647]
[1751416017068,0.83091,2406.5,2406.3,0.6647]
[1751416017263,0.83091,2406.5,2406.3,1.49566]
[1751416017464,0.83091,2406.5,2406.3,0.6647]
[1751416018168,0.83093,2406.4,2406.3,0.6647]
[1751416022373,0.83091,2406.5,2406.3,0.6647]
[1751416023374,1.3232,2406.7,2406.3,0.6647]
[1751416023575,0.83093,2406.4,2406.3,0.6647]
[1751416023771,0.83091,2406.5,2406.3,0.6647]
[1751416024669,0.83093,2406.4,2406.3,0.6647]
[1751416024975,0.83092,2406.5,2406.3,0.6647]
[1751416025169,0.83092,2406.5,2406.2,3.26408043]
[1751416026077,1.3232,2406.7,2406.4,2.43309043]
[1751416026375,0.83087,2406.6,2406.4,3.26401043]
[1751416026871,61.87958,2407.3,2406.4,2.43309043]
[1751416027075,0.83074,2407.0,2406.9,2.43309043]
[1751416027274,0.83079,2406.8,2406.7,2.43309043]
[1751416027577,0.83079,2406.8,2406.5,6.14470867]
[1751416027578,2.0768,2407.0,2406.5,3.13489043]
[1751416027779,4.8438,2407.0,2406.6,0.664]
[1751416027968,0.83082,2406.7,2406.6,0.664]
[1751416028680,0.83081,2406.8,2406.6,1.49486]
[1751416029074,0.83078,2406.9,2406.7,2.43309043]
[1751416032584,0.83079,2406.8,2406.7,2.43309043]
[1751416033583,1.4286,2407.1,2406.7,2.43309043]
[1751416033584,0.83078,2406.9,2406.7,3.26391043]
[1751416033782,0.83078,2406.9,2406.7,2.43309043]
[1751416034076,0.83079,2406.8,2406.7,2.43309043]
[1751416040483,0.83077,2406.9,2406.7,3.26391043]
[1751416040784,0.83079,2406.8,2406.7,2.43309043]
[1751416042085,0.83078,2406.9,2406.7,2.43309043]
[1751416042486,0.83079,2406.8,2406.7,2.43309043]
[1751416052191,0.83077,2406.9,2406.7,3.26390043]
[1751416052390,1.3891,2407.0,2406.6,0.664]
[1751416052590,0.83082,2406.7,2406.6,3.09709043]
[1751416055795,0.83089,2406.5,2406.4,2.43309043]
[1751416056001,0.83088,2406.6,2406.4,2.43309043]
[1751416056299,0.83085,2406.7,2406.4,3.26401043]
[1751416056798,0.83086,2406.6,2406.4,3.26401043]
[1751416057301,0.83086,2406.6,2406.5,0.6614]
[1751416058099,0.83085,2406.7,2406.5,0.6614]
[1751416058402,0.83085,2406.7,2406.6,2.43309043]
[1751416059294,0.8308,2406.8,2406.6,3.26394043]
[1751416060595,0.8308,2406.8,2406.6,2.43309043]
[1751416062806,0.8308,2406.8,2406.6,3.26394043]
[1751416066511,0.8308,2406.8,2406.6,2.43309043]
[1751416066912,0.8308,2406.8,2406.6,3.26395043]
[1751416068306,0.83075,2407.0,2406.6,2.43309043]
[1751416068502,0.83075,2407.0,2406.9,2.43309043]
[1751416068701,0.83071,2407.1,2406.9,2.43309043]
[1751416068910,0.83067,2407.2,2407.0,1.50501]
[1751416069109,0.83067,2407.2,2407.1,2.43309043]
[1751416069410,0.83064,2407.3,2407.1,2.43309043]
[1751416071212,0.83064,2407.3,2407.1,3.26378043]
[1751416072508,0.83064,2407.3,2407.1,2.43309043]
[1751416073007,0.83065,2407.2,2407.1,3.04989413]
[1751416073212,0.83063,2407.3,2407.1,3.88057413]
[1751416073512,0.83063,2407.3,2407.1,3.04989413]
[1751416073713,0.83063,2407.3,2407.1,3.88057413]
[1751416073906,0.83063,2407.3,2407.1,3.04989413]
[1751416074414,0.83063,2407.3,2407.1,3.88057413]
[1751416074914,0.83063,2407.3,2407.1,3.04989413]
[1751416076017,0.83063,2407.3,2407.1,3.88057413]
[1751416076210,59.805,2407.7,2407.1,3.04989413]
[1751416076408,0.6859,2407.8,2407.6,2.43309043]
[1751416076716,0.83046,2407.8,2407.6,2.43309043]
[1751416076912,12.54343,2407.9,2407.7,0.7286]
[1751416077512,0.83044,2407.8,2407.7,0.7286]
[1751416078507,0.83041,2407.9,2407.7,0.7286]
[1751416078709,0.83039,2408.0,2407.8,2.43309043]
[1751416079313,0.83041,2407.9,2407.8,2.43309043]
[1751416079509,0.696,2408.2,2407.8,3.26353043]
[1751416079715,0.83032,2408.2,2408.0,2.43309043]
[1751416080012,0.83032,2408.2,2408.1,0.7274]
[1751416081015,2.15949,2408.3,2408.1,0.7274]
[1751416081215,1.3292,2408.3,2408.1,0.7274]
[1751416081416,2.15949,2408.3,2408.1,0.7274]
[1751416081621,1.3292,2408.3,2408.1,1.55773]
[1751416081916,0.83025,2408.4,2408.2,2.43309043]
[1751416082511,0.6836,2408.5,2408.2,2.43309043]
[1751416082707,0.83027,2408.3,2408.2,2.43309043]
[1751416084819,0.83031,2408.2,2408.1,0.7274]
[1751416086621,0.83037,2408.0,2407.9,0.6965]
[1751416087314,0.83037,2408.0,2407.9,3.12959043]
[1751416088619,0.83037,2408.0,2407.9,2.43309043]
[1751416096327,0.83048,2407.7,2407.6,6.47478458]
[1751416096825,2.07571,2408.3,2407.6,11.47478458]
[1751416097029,0.83043,2407.9,2407.7,0.7216]
[1751416097324,0.83043,2407.9,2407.8,2.43309043]
[1751416098922,0.83043,2407.9,2407.8,3.84939043]
[1751416099927,0.83043,2407.9,2407.8,4.56709043]
[1751416102132,1.3284,2408.3,2407.8,4.56709043]
[1751416102427,0.83031,2408.2,2408.1,2.43309043]
[1751416110535,0.83028,2408.3,2408.1,2.43309043]
[1751416110735,0.83031,2408.2,2408.1,2.43309043]
[1751416110930,0.8303,2408.3,2408.1,2.43309043]
[1751416111436,0.83026,2408.4,2408.1,2.43309043]
[1751416111636,0.83026,2408.4,2408.3,2.43309043]
[1751416112035,0.83026,2408.4,2408.3,3.10079043]
[1751416112535,0.83026,2408.4,2408.3,3.77749043]
[1751416113336,4.20518,2408.7,2408.3,3.77749043]
[1751416113337,3.50098,2408.7,2408.3,3.77749043]
[1751416113536,0.83022,2408.5,2408.3,3.77749043]
[1751416114042,0.83024,2408.4,2408.3,3.77749043]
[1751416114241,0.83024,2408.4,2408.3,9.52447501]
[1751416114637,0.83024,2408.4,2408.3,3.77749043]
[1751416114937,1.4256,2408.7,2408.3,4.60775043]
[1751416115139,1.4256,2408.7,2408.3,3.93105043]
[1751416115442,0.83022,2408.5,2408.3,3.81209043]
[1751416115741,0.83024,2408.4,2408.3,3.81209043]
[1751416117040,0.83024,2408.4,2408.3,9.55907501]
[1751416117244,0.83023,2408.5,2408.3,9.55907501]
[1751416117441,0.83024,2408.4,2408.3,9.55907501]
[1751416117839,0.83023,2408.5,2408.3,9.55907501]
[1751416118239,0.83023,2408.5,2408.3,10.38933501]
[1751416118441,0.83023,2408.5,2408.3,9.55907501]
[1751416118738,0.83024,2408.4,2408.3,8.84777501]
[1751416118938,0.83023,2408.5,2408.3,8.84777501]
[1751416119640,0.83024,2408.4,2408.3,8.84777501]
[1751416120045,0.83023,2408.5,2408.3,8.84777501]
[1751416120242,0.83024,2408.4,2408.3,8.84777501]
[1751416120841,1.4256,2408.7,2408.3,6.41468458]
[1751416121146,0.83024,2408.4,2408.3,8.84777501]
[1751416121340,0.83023,2408.5,2408.3,8.84777501]
[1751416121543,0.83023,2408.5,2408.3,3.10079043]
[1751416121745,0.8302,2408.6,2408.3,3.10079043]
[1751416121946,0.8302,2408.6,2408.4,0.83023]
[1751416122546,1.4256,2408.7,2408.4,0.83022]
[1751416122749,2.25577,2408.7,2408.4,0.83021]
[1751416123047,0.83017,2408.7,2408.5,3.26329043]
[1751416123246,0.83012,2408.8,2408.5,3.26329043]
[1751416123541,11.703,2409.4,2408.7,2.43309043]
[1751416123742,0.83,2409.1,2409.0,2.43309043]
[1751416124945,0.83003,2409.0,2408.9,0.6994]
[1751416127051,0.8301,2408.9,2408.7,2.43309043]
[1751416127346,0.8301,2408.9,2408.7,3.09329043]
[1751416127736,0.8301,2408.9,2408.7,3.92342043]
[1751416127937,0.83006,2409.0,2408.7,3.92342043]
[1751416128146,0.8301,2408.8,2408.7,0.6602]
[1751416130551,0.83017,2408.6,2408.5,8.90807501]
[1751416130742,0.83017,2408.6,2408.5,9.60067501]
[1751416131447,0.83017,2408.6,2408.5,5.74698458]
[1751416131648,0.83017,2408.6,2408.5,0.6926]
[1751416132048,0.7169,2409.2,2408.5,0.6926]
[1751416132352,0.8301,2408.9,2408.8,2.43309043]
[1751416132851,0.83011,2408.8,2408.7,2.43309043]
[1751416135853,0.83011,2408.8,2408.6,6.30655672]
[1751416136152,0.83008,2408.9,2408.7,2.43309043]
[1751416136556,0.83008,2408.9,2408.8,0.6927]
[1751416137256,0.83006,2409.0,2408.8,0.6927]
[1751416137451,1.4367,2409.1,2408.9,2.43309043]
[1751416137651,0.83002,2409.1,2408.9,3.11469043]
[1751416137851,0.83003,2409.0,2408.9,3.11469043]
[1751416145058,0.83003,2409.0,2408.9,2.43309043]
[1751416145255,0.83001,2409.1,2408.9,2.43309043]
[1751416145457,1.4457,2409.3,2408.9,2.43309043]
[1751416145959,0.83,2409.1,2408.9,3.26314043]
[1751416146159,0.82999,2409.2,2408.9,3.26314043]
[1751416146361,1.4457,2409.3,2409.1,2.43309043]
[1751416146562,0.82996,2409.2,2409.1,2.43309043]
[1751416147263,0.82996,2409.2,2409.1,0.6952]
[1751416150863,0.83,2409.1,2409.0,2.43309043]
[1751416153665,0.83003,2409.0,2408.9,6.46808458]
[1751416153866,2.23163,2409.0,2408.9,0.7211]
[1751416154169,0.8301,2408.8,2408.7,5.74698458]
[1751416154372,0.83014,2408.7,2408.6,6.47768458]
[1751416154872,0.83014,2408.7,2408.6,0.7307]
[1751416155266,0.83017,2408.6,2408.5,5.74698458]
[1751416155463,2.14937,2408.6,2408.5,5.74698458]
[1751416155664,0.8302,2408.5,2408.4,7.04032583]
[1751416156061,1.3192,2408.6,2408.4,7.04032583]
[1751416156966,0.8302,2408.5,2408.4,7.04032583]
[1751416157559,0.8302,2408.5,2408.4,0.7307]
[1751416164379,0.83024,2408.4,2408.3,5.74698458]
[1751416164571,0.83027,2408.3,2408.2,5.74698458]
[1751416164975,0.83031,2408.2,2408.1,6.42178458]
[1751416166471,0.83034,2408.1,2408.0,5.74698458]
[1751416167373,0.83038,2408.0,2407.9,9.53287501]
[1751416168882,0.83038,2408.0,2407.9,3.78589043]
[1751416172080,0.83038,2408.1,2407.9,3.78589043]
[1751416172275,0.83038,2408.1,2408.0,2.43309043]
[1751416172676,0.7002,2408.5,2408.0,2.43309043]
[1751416172871,0.83024,2408.4,2408.3,2.43309043]
[1751416174281,0.83038,2408.0,2407.9,1.90878747]
[1751416174483,0.83038,2408.0,2407.9,1.3528]
[1751416175082,0.83038,2408.0,2407.9,0.6635]
[1751416179778,0.83038,2408.0,2407.9,1.21515044]
[1751416180084,0.83038,2408.0,2407.9,0.6635]
[1751416182386,0.83035,2408.1,2407.9,1.49391]
[1751416182583,0.83035,2408.1,2408.0,2.43309043]
[1751416184583,0.83038,2408.0,2407.9,0.6635]
[1751416184790,0.83041,2407.9,2407.8,0.1]
[1751416185081,2.19441,2407.9,2407.8,0.1]
[1751416185284,4.62750043,2407.9,2407.8,0.1]
[1751416185481,0.83048,2407.7,2407.6,5.74698458]
[1751416185686,0.83055,2407.5,2407.4,5.74698458]
[1751416185887,3.26364043,2407.5,2407.4,5.74698458]
[1751416186079,0.83058,2407.4,2407.3,5.74698458]
[1751416186290,4.68877043,2407.4,2407.3,4.75270458]
[1751416186486,0.83076,2406.9,2406.8,0.6611]
[1751416186685,2.07669,2407.2,2406.5,11.33909676]
[1751416186686,2.43309043,2407.0,2406.5,11.33909676]
[1751416186881,0.83086,2406.6,2406.5,12.00019676]
[1751416187591,0.83086,2406.6,2406.5,1.3549]
[1751416187885,0.83082,2406.7,2406.5,2.18578]
[1751416188087,0.83082,2406.7,2406.6,2.43309043]
[1751416188488,0.83086,2406.6,2406.5,1.3549]
[1751416188788,0.83084,2406.7,2406.5,2.18579]
[1751416188990,0.83084,2406.7,2406.5,1.49199]
[1751416189291,0.83084,2406.7,2406.5,2.20449]
[1751416189494,0.83084,2406.7,2406.5,1.3736]
[1751416190191,1.4251,2406.9,2406.5,1.3736]
[1751416191092,0.83083,2406.7,2406.6,2.43309043]
[1751416191594,0.83082,2406.7,2406.6,2.43309043]
[1751416191893,0.83079,2406.8,2406.6,2.43309043]
[1751416192088,0.83082,2406.7,2406.6,2.43309043]
[1751416192485,3.12719043,2407.2,2406.6,2.43309043]
[1751416192687,0.83076,2406.9,2406.8,2.43309043]
[1751416194084,11.708,2407.4,2406.8,2.43309043]
[1751416194294,11.708,2407.4,2407.1,2.43309043]
[1751416194295,0.83065,2407.2,2407.1,2.43309043]
[1751416197193,0.83065,2407.2,2407.1,3.11799043]
[1751416198892,0.83065,2407.2,2407.1,0.6849]
[1751416199692,0.83068,2407.1,2407.0,0.7039]
[1751416200593,0.83067,2407.2,2407.0,0.7039]
[1751416200794,0.83067,2407.2,2407.1,3.15899043]
[1751416200995,11.709,2407.5,2407.1,3.98967043]
[1751416200996,0.83063,2407.3,2407.1,3.98967043]
[1751416201396,0.83065,2407.2,2407.1,4.48519043]
[1751416201597,0.83064,2407.3,2407.1,5.31587043]
[1751416201893,11.709,2407.5,2407.1,5.31587043]
[1751416201894,2.07617,2407.8,2407.1,4.48519043]
[1751416202095,0.83058,2407.5,2407.4,2.43309043]
[1751416203602,0.83054,2407.5,2407.4,3.12289043]
[1751416203801,0.83054,2407.5,2407.4,4.50989043]
[1751416205702,0.83053,2407.6,2407.4,4.50989043]
[1751416206406,0.83054,2407.5,2407.4,4.50989043]
[1751416206606,0.83053,2407.6,2407.4,4.50989043]
[1751416207104,0.83055,2407.5,2407.4,4.50989043]
[1751416207305,0.83055,2407.5,2407.4,3.12289043]
[1751416207499,3.86339043,2407.9,2407.4,3.12289043]
[1751416207500,0.83053,2407.6,2407.4,3.12289043]
[1751416208805,0.8305,2407.7,2407.4,3.95346043]
[1751416209108,0.83051,2407.6,2407.5,0.7221]
[1751416211399,0.83055,2407.5,2407.4,0.6898]
[1751416211601,0.83064,2407.3,2407.0,3.16329043]
[1751416211799,0.8306,2407.4,2407.2,0.83065]
[1751416212206,0.83061,2407.3,2407.1,0.6853]
[1751416212405,0.83062,2407.3,2407.2,2.43309043]
[1751416212798,0.8306,2407.4,2407.2,3.26374043]
[1751416213005,0.83059,2407.4,2407.2,3.26372043]
[1751416213204,0.83061,2407.3,2407.2,2.43309043]
[1751416213399,1.3801,2407.6,2407.2,2.43309043]
[1751416213604,0.83057,2407.5,2407.4,2.43309043]
[1751416215008,0.83059,2407.4,2407.2,4.61393043]
[1751416215209,0.83061,2407.3,2407.2,2.43309043]
[1751416215404,0.83065,2407.2,2407.1,0.6853]
[1751416215805,0.83068,2407.1,2407.0,0.7302]
[1751416216710,0.83068,2407.1,2407.0,3.16329043]
[1751416216909,0.83067,2407.2,2407.0,3.99399043]
[1751416217107,0.83067,2407.2,2407.0,5.35779043]
[1751416217301,0.83064,2407.3,2407.0,5.35779043]
[1751416217512,1.3778,2407.6,2407.2,2.43309043]
[1751416217813,1.3778,2407.6,2407.4,2.43309043]
[1751416218514,0.83057,2407.5,2407.4,2.43309043]
[1751416220113,0.83057,2407.5,2407.3,0.6848]
[1751416220308,0.83058,2407.4,2407.3,0.6848]
[1751416222815,0.83057,2407.5,2407.3,0.6848]
[1751416223716,0.83057,2407.5,2407.3,1.51541]
[1751416223919,0.83057,2407.5,2407.3,0.6848]
[1751416224518,3.88109043,2407.8,2407.3,1.5154]
[1751416224711,5.20419043,2407.8,2407.3,1.5154]
[1751416224912,0.83057,2407.5,2407.3,1.5154]
[1751416225517,0.83057,2407.5,2407.4,2.43309043]
[1751416226313,0.83058,2407.4,2407.3,0.6848]
[1751416228621,1.3768,2407.7,2407.3,0.6848]
[1751416228822,0.83051,2407.6,2407.4,2.43309043]
[1751416229016,0.83051,2407.6,2407.4,3.26366043]
[1751416229818,0.83046,2407.8,2407.6,0.8305]
[1751416230121,0.83041,2407.9,2407.8,2.43309043]
[1751416230424,0.83044,2407.8,2407.7,0.6871]
[1751416235327,0.83054,2407.6,2407.4,3.09439043]
[1751416235525,0.83054,2407.5,2407.4,1.3192]
[1751416235729,0.83054,2407.5,2407.4,0.6579]
[1751416235929,0.83061,2407.3,2407.1,3.09439043]
[1751416236227,1.3871,2407.4,2407.1,1.3192]
[1751416236427,0.83065,2407.2,2407.1,0.6579]
[1751416236627,0.83072,2407.0,2406.9,14.67434164]
[1751416236824,0.83072,2407.0,2406.9,3.14539043]
[1751416237126,0.83075,2406.9,2406.8,0.6613]
[1751416237632,0.83079,2406.8,2406.7,2.43309043]
[1751416237934,1.4324,2407.1,2406.7,2.43309043]
[1751416238124,0.83079,2406.8,2406.7,2.43309043]
[1751416240026,0.83077,2406.9,2406.7,3.26391043]
[1751416241628,0.83077,2406.9,2406.7,2.43309043]
[1751416242127,1.4324,2407.1,2406.7,2.43309043]
[1751416242128,0.83079,2406.8,2406.7,2.43309043]
[1751416242428,1.4324,2407.1,2406.7,2.43309043]
[1751416242429,0.83077,2406.9,2406.7,2.43309043]
[1751416242628,0.83077,2406.9,2406.7,3.26391043]
[1751416243824,0.83077,2406.9,2406.7,2.43309043]
[1751416244427,0.7274,2407.3,2406.7,2.43309043]
[1751416244627,0.83068,2407.1,2407.0,2.43309043]
[1751416245521,0.83067,2407.2,2407.0,2.43309043]
[1751416245726,0.83067,2407.2,2407.1,0.6989]
[1751416248028,0.83063,2407.3,2407.1,0.6989]
[1751416248229,0.83063,2407.3,2407.1,1.3777]
[1751416248930,0.83065,2407.2,2407.1,1.3777]
[1751416250831,2.07654,2407.3,2406.6,0.52006749]
[1751416251031,2.07654,2407.3,2406.6,2.43309043]
[1751416251032,1.4099,2407.1,2406.6,2.43309043]
[1751416251241,0.83075,2407.0,2406.8,2.43309043]
[1751416251442,0.83075,2407.0,2406.9,0.7134]
[1751416253542,0.83082,2406.7,2406.6,0.50770109]
[1751416253744,0.83086,2406.6,2406.5,0.7193]
[1751416254040,2.43309043,2406.8,2406.5,0.7193]
[1751416254237,1.3198,2406.7,2406.5,0.7193]
[1751416254640,0.83086,2406.6,2406.5,0.7193]
[1751416255145,0.83096,2406.3,2406.2,44.50640879]
[1751416255344,0.83096,2406.3,2406.2,45.23440879]
[1751416255544,1.3198,2406.7,2406.2,45.23440879]
[1751416255746,0.83096,2406.3,2406.2,45.23440879]
[1751416255939,0.83096,2406.3,2406.2,44.75255264]
[1751416257434,0.83096,2406.3,2406.2,44.03335264]
[1751416257643,0.83096,2406.4,2406.2,44.74265264]
[1751416258446,0.83096,2406.3,2406.2,44.74265264]
[1751416258747,0.83096,2406.4,2406.2,44.74265264]
[1751416259240,0.83093,2406.4,2406.2,44.74265264]
[1751416259449,0.83096,2406.3,2406.2,42.2373]
[1751416259644,0.83096,2406.3,2406.2,1.4373]
[1751416260345,0.6972,2406.8,2406.2,3.87039043]
[1751416260552,0.83086,2406.6,2406.5,2.43309043]
[1751416260847,0.7189,2407.0,2406.5,2.43309043]
[1751416261047,0.83083,2406.7,2406.3,2.17984]
[1751416261244,0.83081,2406.8,2406.4,1.3489]
[1751416261446,0.83075,2406.9,2406.6,0.83084]
[1751416261646,0.83075,2406.9,2406.7,2.0677]
[1751416261847,0.8307,2407.1,2406.8,2.17968]
[1751416262046,2.0309,2407.3,2406.8,1.3489]
[1751416262247,0.83072,2407.0,2406.9,2.43309043]
[1751416262647,1.3458,2407.3,2406.9,2.43309043]
[1751416262846,0.83065,2407.2,2407.1,2.43309043]
[1751416264956,0.83063,2407.3,2407.1,2.43309043]
[1751416265156,0.83065,2407.2,2407.1,2.43309043]
[1751416265454,0.83064,2407.3,2407.1,3.09929043]
[1751416267654,0.83061,2407.4,2407.1,3.92997043]
[1751416267955,0.83056,2407.5,2407.3,2.43309043]
[1751416268752,0.693,2407.8,2407.3,2.43309043]
[1751416268753,5.85273043,2407.9,2407.3,2.43309043]
[1751416268954,0.83056,2407.5,2407.4,0.7122]
[1751416270354,0.83053,2407.6,2407.4,0.7122]
[1751416270561,13.0487,2408.0,2407.5,2.43309043]
[1751416270755,12.3791,2408.0,2407.7,2.43309043]
[1751416270956,0.83044,2407.8,2407.7,2.43309043]
[1751416271262,0.83054,2407.6,2407.5,2.43309043]
[1751416273160,0.83063,2407.3,2407.0,0.8307]
[1751416273362,4.50935043,2407.7,2407.1,3.26376043]
[1751416273363,0.83059,2407.4,2407.1,3.26376043]
[1751416273961,0.83062,2407.3,2407.1,3.26376043]
[1751416274566,0.83062,2407.3,2407.2,0.6944]
[1751416274864,2.07646,2407.4,2406.8,40.8]
[1751416275064,0.83074,2407.0,2406.8,2.43309043]
[1751416275265,0.8307,2407.1,2406.8,3.26386043]
[1751416275560,0.83073,2407.0,2406.9,2.43309043]
[1751416275960,0.83066,2407.2,2406.9,3.26382043]
[1751416276160,0.83066,2407.2,2407.1,2.43309043]
[1751416279057,0.83068,2407.1,2407.0,0.7265]
[1751416280464,0.83079,2406.8,2406.7,3.12749043]
[1751416280663,0.83077,2406.9,2406.7,3.81969043]
[1751416280866,0.83079,2406.8,2406.7,3.81969043]
[1751416281068,0.83078,2406.9,2406.7,4.65051043]
[1751416282769,0.83078,2406.9,2406.7,3.81969043]
[1751416285474,0.83074,2407.0,2406.7,4.65049043]
[1751416285671,0.83062,2407.3,2407.0,0.8307]
[1751416285877,2.0694,2407.7,2407.1,3.10609043]
[1751416286076,0.83059,2407.4,2407.3,2.43309043]
[1751416287475,0.8305,2407.7,2407.4,0.83057]
[1751416287676,0.8305,2407.7,2407.5,2.43309043]
[1751416287879,0.8305,2407.7,2407.5,3.10609043]
[1751416289980,0.83051,2407.6,2407.5,3.10609043]
[1751416290679,0.8305,2407.7,2407.5,3.10609043]
[1751416291182,0.83051,2407.6,2407.5,3.10609043]
[1751416291676,0.8305,2407.7,2407.5,3.10609043]
[1751416292276,0.83051,2407.6,2407.5,3.10609043]
[1751416293570,1.3736,2407.8,2407.5,3.10609043]
[1751416294982,0.83051,2407.6,2407.5,3.10609043]
[1751416295182,0.83051,2407.7,2407.5,3.10609043]
[1751416295378,0.83051,2407.6,2407.5,3.10609043]
[1751416295578,0.8305,2407.7,2407.5,3.10609043]
[1751416295983,0.83051,2407.6,2407.5,0.673]
[1751416296380,0.83051,2407.7,2407.5,0.673]
[1751416296684,0.83051,2407.6,2407.5,0.673]
[1751416300688,0.8305,2407.7,2407.5,1.50354]
[1751416300887,0.83039,2408.0,2407.6,2.43309043]
[1751416301090,1.34377,2408.4,2407.9,2.43309043]
[1751416301387,0.83033,2408.2,2408.0,0.6786]
[1751416301781,0.83034,2408.1,2408.0,0.6786]
[1751416302284,0.83033,2408.2,2408.0,0.6786]
[1751416302487,0.83029,2408.3,2408.1,2.43309043]
[1751416302989,1.34377,2408.4,2408.1,2.43309043]
[1751416303287,0.8303,2408.2,2408.1,2.43309043]
[1751416303785,0.83029,2408.3,2408.1,2.43309043]
[1751416303987,0.8303,2408.2,2408.1,2.43309043]
[1751416304186,0.83034,2408.1,2408.0,0.6786]
[1751416305487,0.83032,2408.2,2408.0,0.6786]
[1751416305685,0.83032,2408.2,2408.0,1.16485981]
[1751416306088,0.83034,2408.1,2408.0,1.16485981]
[1751416306787,0.83033,2408.2,2408.0,1.16485981]
[1751416307901,0.83029,2408.3,2408.0,1.99521981]
[1751416308086,0.8303,2408.2,2408.0,1.99521981]
[1751416308886,0.8303,2408.2,2408.0,1.16485981]
[1751416309694,0.83034,2408.1,2408.0,1.16485981]
[1751416310692,0.83034,2408.1,2408.0,0.6786]
[1751416310897,0.83041,2407.9,2407.8,40.8]